bitfinex/quotes_ETHUSD_20240811
["timestamp","ask_amount","ask_price","bid_price","bid_amount"]
[1723384582078,3.96010812,2641.7,2641.2,2.65026]
[1723384582278,5.607096,2641.8,2641.3,0.03604929]
[1723384582279,1.31029812,2641.6,2641.3,0.03604929]
[1723384582502,5.09681,2642.3,2641.3,0.07571956]
[1723384582706,2.64916,2642.4,2641.8,2.64964]
[1723384582929,2.64936,2642.2,2641.6,2.37720382]
[1723384583078,2.64901,2642.5,2641.9,0.04084691]
[1723384583278,1.30986053,2642.4,2641.4,2.65006]
[1723384583579,2.64901,2642.5,2641.3,2.3015]
[1723384583580,2.64924,2642.3,2641.6,2.6499]
[1723384583831,2.64906,2642.5,2641.5,0.11390661]
[1723384583832,2.64911,2642.4,2641.8,2.64964]
[1723384584031,2.64901,2642.5,2641.9,2.64957]
[1723384584239,3.158676,2642.5,2641.9,2.69355114]
[1723384584763,3.158676,2642.5,2641.9,0.04398114]
[1723384584950,2.64916,2642.4,2641.9,0.04398114]
[1723384585563,2.64911,2642.4,2641.9,2.69356114]
[1723384585727,2.64911,2642.4,2641.9,2.76925965]
[1723384586125,3.158666,2642.5,2642.0,2.6495]
[1723384586342,2.649,2642.5,2642.0,2.69340138]
[1723384586669,2.6491,2642.4,2642.0,0.04390138]
[1723384587282,2.6492,2642.3,2642.0,0.04390138]
[1723384587443,2.6494,2642.1,2642.0,0.04390138]
[1723384587860,2.6494,2642.1,2641.4,2.65008]
[1723384587861,2.64958,2642.0,2641.4,2.65008]
[1723384588183,5.2989,2642.1,2641.5,2.64995]
[1723384588380,2.64944,2642.1,2641.5,2.64995]
[1723384588570,2.64951,2642.0,2641.4,2.65008]
[1723384588804,2.64951,2642.0,2641.4,3.424322]
[1723384588966,2.64951,2642.0,2641.4,6.074372]
[1723384589152,2.64961,2641.9,2641.4,3.424322]
[1723384589347,2.4953,2641.8,2640.9,2.4425]
[1723384589591,2.65004,2641.5,2641.0,2.65049]
[1723384589897,2.65,2641.6,2640.9,2.4425]
[1723384590097,2.65012,2641.4,2640.9,2.4425]
[1723384590314,2.65021,2641.3,2640.9,2.4425]
[1723384590613,2.64995,2641.6,2640.9,2.6506]
[1723384590792,2.64995,2641.6,2641.0,2.65045]
[1723384591106,2.65017,2641.4,2640.8,2.6507]
[1723384591502,2.65017,2641.4,2640.9,2.65059]
[1723384591674,2.64997,2641.6,2640.9,2.65059]
[1723384591872,2.65016,2641.4,2640.9,0.530134]
[1723384592285,2.65022,2641.3,2640.9,0.530134]
[1723384593864,2.65022,2641.3,2640.6,2.4425]
[1723384594213,2.65022,2641.3,2640.8,2.65071]
[1723384594361,5.30049,2641.3,2640.8,2.65071]
[1723384594561,2.65022,2641.3,2640.8,2.65071]
[1723384594861,5.30049,2641.3,2640.9,0.04417329]
[1723384595274,7.3,2641.5,2641.2,2.65027]
[1723384595479,31.96,2642.1,2641.4,5.30008]
[1723384595480,2.64955,2642.0,2641.4,5.30008]
[1723384595723,2.64955,2642.0,2641.5,2.65]
[1723384595724,2.64951,2642.0,2641.5,2.65]
[1723384595877,2.64951,2642.0,2641.5,2.69373178]
[1723384596404,2.64947,2642.1,2641.5,2.69373178]
[1723384596610,2.64951,2642.0,2641.5,2.69373178]
[1723384596822,2.64947,2642.1,2641.6,2.6499]
[1723384597123,2.64947,2642.1,2641.5,0.66138391]
[1723384597279,2.64952,2642.0,2641.7,0.04336894]
[1723384597791,2.6496,2641.9,2641.8,0.04328917]
[1723384598009,2.6496,2641.9,2641.4,2.65003]
[1723384598195,2.6496,2641.9,2641.8,0.04328917]
[1723384598392,2.6496,2641.9,2641.4,2.65003]
[1723384598607,2.6496,2641.9,2641.8,0.04328917]
[1723384598780,2.6496,2641.9,2641.4,2.65003]
[1723384598982,2.64947,2642.1,2641.0,5.30089]
[1723384598983,2.64996,2641.6,2641.0,5.30089]
[1723384599209,2.64996,2641.6,2641.1,2.65032]
[1723384599585,2.64996,2641.6,2640.9,5.36249833]
[1723384599931,2.64996,2641.6,2640.9,2.71198833]
[1723384600525,2.65001,2641.5,2641.0,2.65049]
[1723384600734,2.65001,2641.5,2641.0,3.45180183]
[1723384605843,2.4772,2641.4,2640.7,2.65073]
[1723384606024,2.65035,2641.2,2640.7,2.65073]
[1723384606530,2.65058,2641.0,2640.5,2.65091]
[1723384606742,2.6508,2640.8,2640.1,4.97595]
[1723384606922,2.6508,2640.8,2640.1,4.97592]
[1723384607240,2.65101,2640.5,2640.0,2.65146]
[1723384607821,3.16361,2640.7,2640.1,2.6514]
[1723384607822,2.65092,2640.6,2640.1,2.6514]
[1723384608024,3.232373,2640.6,2640.0,2.65142]
[1723384608343,2.65103,2640.5,2639.9,2.65153]
[1723384608547,2.65113,2640.4,2639.9,2.65153]
[1723384608870,2.65113,2640.4,2639.7,2.65171]
[1723384608992,5.12833,2640.4,2639.7,5.30346]
[1723384609195,2.65127,2640.3,2639.7,3.4681173]
[1723384609500,5.3027,2640.2,2639.5,8.164483]
[1723384609828,2.65146,2640.1,2639.6,0.04782502]
[1723384610597,2.65152,2640.0,2639.6,0.04782502]
[1723384611241,2.65131,2640.2,2639.6,0.04782502]
[1723384611539,2.65131,2640.2,2639.6,2.69967502]
[1723384611839,5.30269,2640.2,2639.6,3.28843482]
[1723384612136,2.65131,2640.2,2639.6,3.28843482]
[1723384612531,5.30269,2640.2,2639.6,3.28843482]
[1723384612732,2.65143,2640.1,2639.6,0.63658482]
[1723384612895,5.30271,2640.2,2639.6,0.04782502]
[1723384613223,5.30268,2640.2,2639.6,2.69967502]
[1723384613739,5.30271,2640.2,2639.6,2.69967502]
[1723384614167,2.65131,2640.2,2639.6,0.04782502]
[1723384614321,2.65166,2639.9,2639.6,0.04782502]
[1723384614670,5.30314,2640.0,2639.4,2.65206]
[1723384614834,2.65156,2640.0,2639.7,0.03808713]
[1723384615049,2.65163,2639.9,2639.4,2.65206]
[1723384615226,2.65163,2639.9,2639.8,0.03801865]
[1723384615418,2.65163,2639.9,2639.4,2.65206]
[1723384615621,2.65163,2639.9,2639.8,0.03808616]
[1723384615865,2.65163,2639.9,2639.4,2.65206]
[1723384616073,2.65163,2639.9,2639.8,0.03808616]
[1723384616364,2.65177,2639.8,2639.2,4.9769]
[1723384616660,2.65177,2639.8,2639.2,5.30452]
[1723384617159,5.12877,2640.0,2639.4,2.65206]
[1723384617370,2.65163,2639.9,2639.4,2.65206]
[1723384620478,2.65114,2640.4,2639.4,2.65206]
[1723384620479,2.65106,2640.5,2639.9,2.65153]
[1723384620638,2.65118,2640.4,2639.7,5.30345]
[1723384620968,2.65121,2640.3,2639.8,2.65165]
[1723384621173,2.65121,2640.3,2639.7,2.7274664]
[1723384621326,5.30248,2640.3,2639.7,2.7274664]
[1723384621571,2.65142,2640.1,2639.5,4.97653]
[1723384621801,2.65138,2640.2,2639.6,2.6519]
[1723384622110,2.4772,2640.6,2639.6,2.6519]
[1723384622111,5.30292,2640.1,2639.6,2.6519]
[1723384622280,3.181752,2640.1,2639.6,2.6519]
[1723384622465,5.30295,2640.1,2639.6,2.6519]
[1723384622664,2.65146,2640.1,2639.6,2.6519]
[1723384623474,2.65153,2640.0,2639.4,5.3041]
[1723384623924,2.65153,2640.0,2639.5,2.652]
[1723384624602,2.65162,2639.9,2639.4,2.65211]
[1723384624901,2.65162,2639.9,2639.6,0.05535794]
[1723384625109,2.65162,2639.9,2639.4,2.65211]
[1723384625110,2.65162,2639.9,2639.5,2.70746448]
[1723384625263,2.4772,2640.1,2639.7,0.0552514]
[1723384625460,2.990058,2640.1,2639.6,0.05535794]
[1723384625702,5.3031,2640.0,2639.8,0.05514487]
[1723384626004,2.65168,2639.9,2639.8,0.05514487]
[1723384626209,2.65168,2639.9,2639.3,2.6522]
[1723384626384,2.65168,2639.9,2639.4,2.65211]
[1723384626891,2.65168,2639.9,2639.5,0.05546448]
[1723384628697,2.65172,2639.8,2639.5,0.05546448]
[1723384630038,2.65152,2640.0,2639.5,0.05546448]
[1723384630039,2.65191,2639.6,2639.5,0.05546448]
[1723384630335,2.65191,2639.6,2639.1,2.65241]
[1723384630336,2.65194,2639.6,2639.1,2.6524]
[1723384630491,2.65194,2639.6,2639.5,0.05546448]
[1723384630696,2.65194,2639.6,2639.1,2.6524]
[1723384630897,2.65194,2639.6,2639.5,0.05546448]
[1723384631097,3.409186,2639.6,2639.1,2.6524]
[1723384631297,2.65194,2639.6,2639.5,0.05546448]
[1723384631619,2.65205,2639.5,2638.8,2.2761]
[1723384631821,2.65205,2639.5,2639.0,2.65251]
[1723384632115,2.65205,2639.5,2638.6,2.65285]
[1723384632116,2.65247,2639.1,2638.6,2.65285]
[1723384632525,0.55,2639.4,2638.8,2.65262]
[1723384632845,0.55,2639.4,2638.9,2.65254]
[1723384633011,2.2687,2639.6,2639.0,2.6525]
[1723384633012,4.92062,2639.6,2639.0,2.6525]
[1723384633339,9.95188,2639.7,2639.1,2.6524]
[1723384633638,9.95188,2639.7,2639.2,2.65231]
[1723384633639,12.60376,2639.7,2639.2,2.65231]
[1723384633998,12.60376,2639.7,2639.0,2.91768]
[1723384633999,2.65192,2639.6,2639.0,2.91768]
[1723384634494,2.65192,2639.6,2638.7,5.0574297]
[1723384634495,2.65192,2639.6,2639.1,2.65238]
[1723384635132,2.65202,2639.5,2639.1,2.65238]
[1723384635900,2.65202,2639.5,2638.9,5.30512]
[1723384636109,2.65202,2639.5,2639.0,2.65251]
[1723384637948,2.65216,2639.4,2638.9,2.65259]
[1723384638248,2.65216,2639.4,2638.7,2.4046297]
[1723384638249,2.65202,2639.5,2639.0,2.6525]
[1723384638602,2.65202,2639.5,2638.8,2.89310297]
[1723384638851,2.65219,2639.4,2638.8,5.54576297]
[1723384639048,5.30412,2639.5,2638.9,2.65261]
[1723384639413,2.65202,2639.5,2638.9,5.30517]
[1723384639635,2.65202,2639.5,2638.9,2.65256]
[1723384639636,5.3041,2639.5,2638.9,2.65256]
[1723384639835,2.65202,2639.5,2639.0,0.05670508]
[1723384640147,2.65212,2639.4,2639.0,0.05670508]
[1723384640317,2.65229,2639.3,2639.0,0.05670508]
[1723384640519,2.65228,2639.3,2639.0,0.05670508]
[1723384640737,2.6524,2639.2,2638.7,0.1285297]
[1723384640938,2.65252,2639.0,2638.7,0.1285297]
[1723384641107,2.65252,2639.0,2638.8,0.05691827]
[1723384641609,2.65252,2639.0,2638.9,0.05671765]
[1723384641806,2.2687,2638.9,2638.7,0.1285297]
[1723384642007,4.92132,2638.9,2638.7,0.1285297]
[1723384642225,2.2687,2638.9,2638.7,0.1285297]
[1723384643845,7.57402,2638.9,2638.7,0.1285297]
[1723384644074,4.92133,2638.9,2638.7,0.1285297]
[1723384644975,2.65272,2638.8,2638.7,0.1285297]
[1723384645304,7.57401,2638.9,2638.7,0.1285297]
[1723384645461,4.92133,2638.9,2638.7,0.1285297]
[1723384645988,2.65254,2639.0,2638.7,0.1285297]
[1723384646855,2.65249,2639.1,2638.7,0.1285297]
[1723384647257,5.30498,2639.1,2638.7,0.1285297]
[1723384647487,2.65249,2639.1,2638.7,0.1285297]
[1723384647785,5.30497,2639.1,2638.7,0.1285297]
[1723384647994,2.65252,2639.0,2638.7,0.1285297]
[1723384648349,2.65262,2638.9,2638.7,0.1285297]
[1723384650764,3.183129,2638.9,2638.7,0.1285297]
[1723384651090,5.08232,2638.8,2638.7,0.1285297]
[1723384651246,2.4296,2638.8,2638.7,0.1285297]
[1723384651449,2.65262,2638.9,2638.7,0.1285297]
[1723384651674,2.65252,2639.0,2638.7,0.1285297]
[1723384652191,2.65252,2639.0,2638.8,0.05510631]
[1723384652360,2.65252,2639.0,2638.7,0.1285297]
[1723384652550,2.65252,2639.0,2638.8,0.05522803]
[1723384652889,1.445912,2639.2,2638.7,2.7813397]
[1723384653090,7.3,2639.4,2638.8,0.27813397]
[1723384653276,9.95211,2639.4,2639.0,2.65251]
[1723384653590,12.60429,2639.4,2638.9,2.6526]
[1723384653751,9.95211,2639.4,2638.9,2.6526]
[1723384653949,7.3,2639.4,2639.0,2.65246]
[1723384654162,7.3,2639.4,2638.9,2.65261]
[1723384654455,9.95215,2639.4,2638.9,2.65261]
[1723384655179,9.95215,2639.4,2638.9,5.30522]
[1723384655356,9.95215,2639.4,2638.9,2.65261]
[1723384655561,22.42193,2639.6,2639.0,2.65243]
[1723384655753,2.65193,2639.6,2639.0,2.65243]
[1723384655989,2.65206,2639.5,2639.0,2.65243]
[1723384657698,5.98709533,2639.6,2639.0,2.65243]
[1723384657902,5.98709533,2639.6,2639.1,2.65236]
[1723384658105,2.65193,2639.6,2639.1,2.65236]
[1723384658596,5.30394,2639.6,2639.1,2.65236]
[1723384658763,2.65193,2639.6,2639.1,2.65236]
[1723384659893,7.3,2639.7,2639.2,2.3136]
[1723384660193,2.65209,2639.5,2638.9,4.96615]
[1723384660379,2.65209,2639.5,2639.0,2.65251]
[1723384661059,2.65198,2639.6,2638.9,4.96621]
[1723384661060,2.65212,2639.4,2638.9,4.96621]
[1723384661369,2.65212,2639.4,2638.9,2.65261]
[1723384661793,2.65212,2639.4,2638.8,2.65264]
[1723384661961,2.65212,2639.4,2638.8,5.3053]
[1723384662154,2.65212,2639.4,2638.8,2.65264]
[1723384662353,2.65223,2639.3,2638.8,2.65264]
[1723384662581,2.65223,2639.3,2638.8,5.30531]
[1723384662796,2.65212,2639.4,2638.9,2.65261]
[1723384663211,2.65202,2639.5,2639.0,2.65251]
[1723384663373,9.7296,2639.7,2639.1,2.65236]
[1723384663374,2.65192,2639.6,2639.1,2.65236]
[1723384663709,7.3,2639.7,2639.3,2.65216]
[1723384664002,2.65212,2639.4,2638.9,2.65255]
[1723384664212,2.65213,2639.4,2638.9,2.65253]
[1723384665570,2.65202,2639.5,2639.0,2.6525]
[1723384667095,2.65213,2639.4,2639.0,2.6525]
[1723384667283,2.4296,2639.6,2638.8,2.3136]
[1723384667482,2.4296,2639.6,2638.2,1.96975573]
[1723384667483,2.65239,2639.2,2638.6,2.65287]
[1723384667701,2.65223,2639.3,2638.7,2.7813297]
[1723384668183,2.65211,2639.4,2638.9,2.6526]
[1723384669877,6.27713,2639.5,2638.9,2.65256]
[1723384670174,1.45792649,2639.4,2639.0,2.65251]
[1723384670479,1.45792649,2639.4,2639.0,2.65246]
[1723384670680,1.45792649,2639.4,2638.7,2.7812697]
[1723384670681,4.11004649,2639.4,2638.8,2.65262]
[1723384671008,2.65212,2639.4,2638.9,2.65261]
[1723384671523,6.27714,2639.5,2638.9,2.65261]
[1723384671814,4.10989205,2639.4,2638.9,2.65257]
[1723384672019,1.45770205,2639.3,2638.9,2.65257]
[1723384672818,2.65232,2639.2,2638.7,3.55249467]
[1723384673020,2.65232,2639.2,2638.7,2.7812797]
[1723384674811,2.65242,2639.1,2638.7,0.1285297]
[1723384675210,2.65242,2639.1,2638.7,2.7813297]
[1723384675595,2.65227,2639.3,2638.7,2.7813297]
[1723384675596,2.65227,2639.3,2638.7,6.31831567]
[1723384675806,2.65192,2639.6,2639.1,2.65241]
[1723384676112,1.45768299,2639.5,2639.1,2.65241]
[1723384676690,2.65192,2639.6,2639.1,2.65241]
[1723384676918,1.45772237,2639.5,2639.1,2.65241]
[1723384677118,1.45772237,2639.5,2639.2,2.65231]
[1723384677329,9.95191,2639.7,2639.2,2.65231]
[1723384677330,12.60378,2639.7,2639.2,2.65231]
[1723384677503,1.45831495,2639.6,2639.2,2.65231]
[1723384678405,1.45831495,2639.6,2639.2,2.65226]
[1723384678748,1.45831495,2639.6,2639.2,2.65228]
[1723384679248,1.45831495,2639.6,2639.2,0.758251]
[1723384679544,1.45831495,2639.6,2639.3,2.65217]
[1723384680112,7.3,2639.7,2639.3,2.65217]
[1723384680308,1.45832926,2639.6,2639.3,5.30433]
[1723384680624,1.45832926,2639.6,2639.3,2.65216]
[1723384680820,7.3,2639.7,2639.3,2.65216]
[1723384681121,1.45833419,2639.6,2639.3,2.65216]
[1723384682215,7.3,2639.7,2639.4,2.65209]
[1723384682415,7.3,2639.7,2639.3,2.65216]
[1723384682808,7.3,2639.7,2639.3,5.30431]
[1723384683144,1.45846438,2639.6,2639.3,2.65215]
[1723384683324,22.42174,2639.8,2639.0,2.2779]
[1723384683524,1.45851543,2639.7,2639.3,2.65213]
[1723384683706,1.45851543,2639.7,2639.1,2.6524]
[1723384683909,12.19,2640.3,2639.1,2.6524]
[1723384683910,2.4417,2640.6,2640.0,2.65151]
[1723384684115,2.4417,2640.6,2640.2,2.65125]
[1723384684348,2.76941921,2640.5,2639.8,2.72739081]
[1723384684651,2.65124,2640.3,2639.8,2.72739081]
[1723384684818,2.6512,2640.4,2639.8,2.65164]
[1723384685148,2.6512,2640.4,2639.9,2.65161]
[1723384685576,5.09312,2640.1,2639.6,2.65189]
[1723384685739,5.09312,2640.1,2639.4,2.65201]
[1723384685740,5.09316,2640.1,2639.4,2.65201]
[1723384686067,2.65166,2639.9,2639.4,2.65201]
[1723384686838,2.65166,2639.9,2639.5,2.65199]
[1723384687152,2.65151,2640.0,2639.5,2.65199]
[1723384687337,2.65142,2640.1,2639.6,2.6519]
[1723384687536,2.65142,2640.1,2639.4,2.65201]
[1723384687838,5.09233,2639.9,2639.4,5.30407]
[1723384688351,2.4407,2639.9,2639.5,2.65201]
[1723384688651,5.09231,2639.9,2639.4,2.65201]
[1723384688844,7.74401,2639.9,2639.4,2.65201]
[1723384689061,5.09231,2639.9,2639.4,5.30408]
[1723384689373,2.4407,2639.9,2639.5,2.652]
[1723384689882,5.09232,2639.9,2639.4,5.30407]
[1723384690049,5.09232,2639.9,2639.4,2.65201]
[1723384690763,5.09232,2639.9,2639.3,5.13472]
[1723384690940,5.09232,2639.9,2639.4,2.6521]
[1723384691375,5.09232,2639.9,2639.4,5.3042]
[1723384691687,7.744,2639.9,2639.4,2.6521]
[1723384691853,5.09232,2639.9,2639.4,2.6521]
[1723384692380,5.09232,2639.9,2639.4,2.65207]
[1723384692584,2.65197,2639.6,2639.1,2.6524]
[1723384692872,2.65197,2639.6,2639.0,5.13505]
[1723384693378,5.30396,2639.6,2639.1,2.65236]
[1723384693535,2.65197,2639.6,2639.1,2.65236]
[1723384693755,2.65197,2639.6,2639.1,5.30472]
[1723384693975,2.65197,2639.6,2639.1,2.65236]
[1723384694198,5.30394,2639.6,2639.1,2.65236]
[1723384694342,2.65197,2639.6,2639.1,2.65236]
[1723384694671,5.30396,2639.6,2639.1,2.65236]
[1723384694896,2.65202,2639.5,2638.9,2.65252]
[1723384695044,2.65202,2639.5,2639.0,2.65246]
[1723384695045,5.09272,2639.5,2639.0,2.65246]
[1723384695878,2.4407,2639.5,2639.1,2.65235]
[1723384696980,2.65192,2639.6,2639.1,2.65235]
[1723384697140,9.95185,2639.7,2639.1,2.65232]
[1723384697546,2.65192,2639.6,2639.1,2.65232]
[1723384698046,2.65192,2639.6,2638.8,2.65271]
[1723384698047,2.65226,2639.3,2638.8,2.65271]
[1723384698275,2.65237,2639.2,2638.7,0.1285297]
[1723384698664,2.65242,2639.1,2638.7,0.1285297]
[1723384699184,2.65226,2639.3,2638.8,2.65269]
[1723384699391,5.30456,2639.3,2638.8,2.65269]
[1723384699750,2.65226,2639.3,2638.8,2.65269]
[1723384700873,5.09278,2639.5,2639.0,2.65246]
[1723384701074,3.20212,2639.4,2638.9,2.65261]
[1723384701388,2.4407,2639.5,2639.0,2.65248]
[1723384701588,7.3,2639.7,2639.0,5.40785674]
[1723384701756,9.95189,2639.7,2639.1,2.65234]
[1723384701957,9.95189,2639.7,2639.1,5.30469]
[1723384702168,9.95189,2639.7,2639.1,2.65234]
[1723384702610,9.95189,2639.7,2639.2,2.65231]
[1723384703255,9.95189,2639.7,2639.2,5.30457]
[1723384703801,9.95189,2639.7,2639.1,2.65241]
[1723384703802,2.65194,2639.6,2639.1,2.65241]
[1723384704326,12.51626933,2639.7,2639.2,2.65231]
[1723384704509,12.51626933,2639.7,2639.3,2.4826]
[1723384704510,7.3,2639.7,2639.3,2.4826]
[1723384704712,19.77,2639.9,2639.5,2.65197]
[1723384705023,2.65162,2639.9,2639.5,2.65197]
[1723384705334,4.156001,2639.9,2639.3,2.65214]
[1723384705520,2.65171,2639.8,2639.3,2.65214]
[1723384705829,2.65198,2639.6,2639.1,2.65234]
[1723384706327,2.65162,2639.9,2639.3,5.09083]
[1723384706630,2.65162,2639.9,2639.4,2.65211]
[1723384706931,5.30331,2639.9,2639.4,2.65211]
[1723384707101,2.65162,2639.9,2639.4,2.65211]
[1723384707303,2.6519,2639.7,2639.3,2.4387]
[1723384707614,2.65172,2639.8,2639.3,2.65219]
[1723384707790,4.2800482,2639.8,2639.3,2.65219]
[1723384707995,2.65182,2639.7,2639.3,2.65219]
[1723384708596,4.2800382,2639.8,2639.3,2.65219]
[1723384708793,2.65171,2639.8,2639.3,2.65216]
[1723384708994,2.65171,2639.8,2639.3,5.30432]
[1723384709727,2.65163,2639.9,2639.3,2.65216]
[1723384709927,9.7407,2640.0,2639.5,2.65196]
[1723384709928,12.39221,2640.0,2639.5,2.65196]
[1723384710101,2.65162,2639.9,2639.4,2.65211]
[1723384711110,2.65162,2639.9,2639.5,2.652]
[1723384712147,12.39221,2640.0,2639.5,2.652]
[1723384712326,2.65161,2639.9,2639.4,2.65211]
[1723384712526,2.65161,2639.9,2639.3,5.3043]
[1723384712527,2.65172,2639.8,2639.3,5.3043]
[1723384713031,2.65181,2639.7,2639.2,3.78231]
[1723384713740,2.65181,2639.7,2639.3,2.65218]
[1723384713937,2.65171,2639.8,2639.3,2.65218]
[1723384715120,4.003841,2639.9,2639.4,2.6521]
[1723384715121,2.65161,2639.9,2639.4,2.6521]
[1723384716563,8.43,2640.0,2639.5,2.65195]
[1723384716739,7.3,2640.0,2639.5,2.65195]
[1723384717055,7.3,2640.0,2639.3,2.65214]
[1723384717056,4.90711,2639.9,2639.3,2.65214]
[1723384717229,2.65177,2639.8,2639.3,5.3043]
[1723384717928,2.65177,2639.8,2639.4,2.6521]
[1723384718134,4.90711,2639.9,2639.4,2.6521]
[1723384718443,2.2555,2639.9,2639.5,2.65199]
[1723384718618,4.90712,2639.9,2639.4,2.6521]
[1723384718964,4.90712,2639.9,2639.4,2.65206]
[1723384719357,2.65173,2639.8,2639.3,2.6522]
[1723384719560,2.65173,2639.8,2639.3,5.30436]
[1723384719755,2.2555,2639.9,2639.4,2.6521]
[1723384719960,2.2555,2639.9,2639.5,2.65201]
[1723384720290,2.2555,2639.9,2639.3,3.539496]
[1723384720291,7.3,2640.0,2639.8,2.6517]
[1723384720458,7.3,2640.0,2639.8,3.182049]
[1723384720660,7.3,2640.0,2639.8,2.6517]
[1723384720894,34.61127,2640.3,2639.7,2.65175]
[1723384720895,22.42127,2640.3,2639.7,2.65175]
[1723384721192,22.42126,2640.3,2639.8,2.65171]
[1723384721396,2.65146,2640.1,2639.6,2.4387]
[1723384721594,22.42126,2640.3,2639.7,2.65176]
[1723384721595,2.65133,2640.2,2639.7,2.65176]
[1723384721958,2.65133,2640.2,2639.7,5.30352]
[1723384722360,22.42126,2640.3,2639.7,2.65176]
[1723384722572,22.42126,2640.3,2639.8,2.65171]
[1723384722972,19.77,2640.3,2640.0,2.6515]
[1723384723261,19.77,2640.3,2639.8,2.65162]
[1723384723479,22.42121,2640.3,2639.8,2.65162]
[1723384723884,19.77,2640.3,2639.8,2.65162]
[1723384724156,22.4213,2640.3,2639.8,2.65162]
[1723384724360,22.4213,2640.3,2639.8,5.30328]
[1723384724587,22.4213,2640.3,2639.8,2.65162]
[1723384724786,2.6513,2640.3,2639.8,5.30328]
[1723384724960,2.6513,2640.3,2639.8,2.65162]
[1723384725284,2.65132,2640.2,2639.8,2.65162]
[1723384725597,1.108103,2640.3,2639.9,2.65154]
[1723384725910,9.95117,2640.4,2639.9,2.65154]
[1723384726401,7.3,2640.4,2640.0,2.65151]
[1723384726927,7.3,2640.4,2640.0,2.65144]
[1723384727496,7.3,2640.4,2639.9,2.65153]
[1723384727704,9.95111,2640.4,2639.9,2.65153]
[1723384728406,7.3,2640.4,2639.9,2.65153]
[1723384728625,7.3,2640.4,2640.1,2.65136]
[1723384728948,24.67641,2640.6,2640.1,2.65136]
[1723384729131,0.55,2640.5,2640.1,2.65136]
[1723384729512,3.20101,2640.5,2640.1,2.65136]
[1723384729837,22.0255,2640.6,2640.1,2.65133]
[1723384729994,19.77,2640.6,2640.2,2.65126]
[1723384731135,22.42091,2640.6,2640.2,2.65126]
[1723384731294,22.42091,2640.6,2640.1,2.4554]
[1723384731694,22.42091,2640.6,2640.1,5.10679]
[1723384733704,2.65091,2640.6,2640.1,5.10679]
[1723384734236,2.65091,2640.6,2640.1,2.65139]
[1723384734489,6.001088,2640.6,2640.1,2.65139]
[1723384737389,2.65113,2640.4,2639.9,2.72726073]
[1723384737597,4.95163,2640.4,2639.9,2.72726073]
[1723384738101,2.65113,2640.4,2639.9,5.37880073]
[1723384738293,2.65113,2640.4,2639.9,2.72726073]
[1723384738866,2.65113,2640.4,2639.9,2.65151]
[1723384740078,2.65113,2640.4,2640.0,2.65148]
[1723384740273,6.001098,2640.6,2640.0,2.65148]
[1723384740493,2.3005,2640.7,2640.2,1.13]
[1723384740694,0.59346053,2641.1,2640.2,1.13]
[1723384740695,2.65056,2641.0,2640.5,2.651]
[1723384740907,2.65056,2641.0,2640.4,2.6511]
[1723384741073,2.65066,2640.9,2640.4,2.6511]
[1723384742277,2.65071,2640.8,2640.3,2.65119]
[1723384742481,2.65071,2640.8,2640.3,5.30235]
[1723384742681,2.65071,2640.8,2640.3,2.65116]
[1723384742884,2.65071,2640.8,2639.8,2.65166]
[1723384742885,2.3005,2640.6,2639.9,2.65154]
[1723384743113,2.65078,2640.8,2640.1,2.65136]
[1723384743270,2.65078,2640.8,2640.3,2.65116]
[1723384743465,2.65078,2640.8,2640.3,5.30232]
[1723384743680,3.4305,2640.9,2640.4,2.65106]
[1723384743885,6.08115,2640.9,2640.4,2.65106]
[1723384746113,2.65072,2640.8,2640.3,2.65115]
[1723384747319,2.65072,2640.8,2640.3,6.19867219]
[1723384747518,2.65072,2640.8,2640.3,3.54751219]
[1723384747703,2.65072,2640.8,2640.4,2.65111]
[1723384748484,22.42072,2640.8,2640.4,2.65111]
[1723384749115,19.77,2640.8,2640.5,2.65099]
[1723384749936,2.65036,2641.2,2640.7,2.65072]
[1723384750233,7.3,2641.8,2640.7,2.65072]
[1723384750234,5.74256988,2641.7,2641.2,2.65026]
[1723384750440,5.74256988,2641.7,2641.0,1.13]
[1723384750441,5.29947,2641.8,2641.3,4.95105]
[1723384750582,5.29947,2641.8,2641.3,2.65015]
[1723384750781,5.29947,2641.8,2641.2,2.65027]
[1723384750782,2.64988,2641.7,2641.2,2.65027]
[1723384751406,2.64997,2641.6,2641.1,5.02701779]
[1723384751813,2.65006,2641.5,2641.1,2.3009]
[1723384751989,2.65006,2641.5,2641.0,2.6505]
[1723384752516,2.65006,2641.5,2641.0,2.72621783]
[1723384752818,2.65001,2641.5,2641.0,0.07571783]
[1723384753230,2.65001,2641.5,2641.0,3.02529981]
[1723384753931,2.4994,2641.8,2641.2,2.6503]
[1723384754133,2.4994,2641.8,2641.3,2.65011]
[1723384754134,5.14911,2641.8,2641.3,2.65011]
[1723384754333,2.4994,2641.8,2641.4,2.6501]
[1723384754835,2.64964,2641.9,2641.4,2.6501]
[1723384755198,5.14897,2642.0,2641.5,2.72565305]
[1723384755403,2.64941,2642.1,2641.6,2.6499]
[1723384756436,2.64941,2642.1,2641.6,3.07243678]
[1723384756635,2.64941,2642.1,2641.6,2.64985]
[1723384757196,5.14876,2642.2,2641.6,2.64983]
[1723384757824,5.14857,2642.4,2641.8,2.6497]
[1723384758026,2.64917,2642.4,2641.9,2.64955]
[1723384759340,2.64916,2642.4,2641.8,3.22802476]
[1723384759521,2.64916,2642.4,2641.8,3.22796476]
[1723384759721,2.64916,2642.4,2641.8,5.87761476]
[1723384759941,2.64916,2642.4,2641.8,3.22796476]
[1723384760112,2.64916,2642.4,2641.8,5.87761476]
[1723384760643,2.64916,2642.4,2641.8,3.22796476]